fUST/lending_fUST_20250812
["ID","MTS","AMOUNT","RATE_DAILY","PERIOD"]
[378682109,1754958645952,-770.91,0.00019349,2]
[378682110,1754958645962,-694.52,0.00019349,2]
[378682111,1754958645972,-460.0,0.00019349,2]
[378682112,1754958645982,-416.09324694,0.00019349,2]
[378682113,1754958645992,-723.93,0.00019349,2]
[378682114,1754958646002,-460.0,0.00019349,2]
[378682115,1754958646012,-460.0,0.00019349,2]
[378682116,1754958646022,-460.0,0.00019349,2]
[378682117,1754958646032,-460.0,0.00019349,2]
[378682118,1754958646135,-460.0,0.00019349,2]
[378682119,1754958646145,-460.0,0.00019349,2]
[378682120,1754958646155,-460.0,0.00019349,2]
[378682121,1754958646164,-460.0,0.00019349,2]
[378682122,1754958646174,-460.0,0.00019349,2]
[378682123,1754958646183,-460.0,0.00019349,2]
[378682124,1754958646193,-308.20540644,0.00019349,2]
[378682125,1754958646202,-460.0,0.00019349,2]
[378682126,1754958646211,-343.65240613,0.00019349,2]
[378682127,1754958646220,-460.0,0.00019349,2]
[378682128,1754958646229,-516.85,0.00019349,2]
[378682129,1754958646238,-210.37076044,0.00019349,2]
[378682130,1754958646247,-460.0,0.00019349,2]
[378682131,1754958646257,-460.0,0.00019349,2]
[378682132,1754958646266,-460.0,0.00019349,2]
[378682133,1754958646275,-460.0,0.00019349,2]
[378682134,1754958646285,-460.0,0.00019349,2]
[378682135,1754958646298,-460.0,0.00019349,2]
[378682136,1754958646308,-460.0,0.00019349,2]
[378682137,1754958646317,-687.7,0.00019349,2]
[378682138,1754958646327,-460.0,0.00019349,2]
[378682139,1754958646344,-478.38,0.00019349,2]
[378682140,1754958646363,-460.0,0.00019349,2]
[378682141,1754958646382,-582.02,0.00019349,2]
[378682142,1754958646392,-460.0,0.00019349,2]
[378682143,1754958646402,-460.0,0.00019349,2]
[378682144,1754958646413,-446.17090379,0.00019349,2]
[378682145,1754958646425,-460.0,0.00019349,2]
[378682146,1754958646435,-460.0,0.00019349,2]
[378682147,1754958646445,-562.62,0.00019349,2]
[378682148,1754958646454,-460.0,0.00019349,2]
[378682149,1754958646464,-460.0,0.00019349,2]
[378682150,1754958646473,-460.0,0.00019349,2]
[378682151,1754958646483,-416.68215033,0.00019349,2]
[378682152,1754958646492,-460.0,0.00019349,2]
[378682153,1754958646501,-460.0,0.00019349,2]
[378682154,1754958646511,-460.0,0.00019349,2]
[378682155,1754958646520,-460.0,0.00019349,2]
[378682156,1754958646530,-460.0,0.00019349,2]
[378682157,1754958646540,-460.0,0.00019349,2]
[378682158,1754958646550,-460.0,0.00019349,2]
[378682159,1754958646559,-460.0,0.00019349,2]
[378682160,1754958646568,-549.14,0.00019349,2]
[378682161,1754958646578,-460.0,0.00019349,2]
[378682162,1754958646588,-469.0221619,0.00019349,2]
[378682163,1754958646597,-500.0,0.00019349,2]
[378682164,1754958646607,-460.0,0.00019349,2]
[378682165,1754958646616,-460.0,0.00019349,2]
[378682166,1754958646625,-460.0,0.00019349,2]
[378682167,1754958646635,-575.56,0.00019349,2]
[378682168,1754958646644,-460.0,0.00019349,2]
[378682169,1754958646656,-460.0,0.00019349,2]
[378682170,1754958646665,-460.0,0.00019349,2]
[378682171,1754958646675,-460.0,0.00019349,2]
[378682172,1754958646684,-460.0,0.00019349,2]
[378682173,1754958646693,-460.0,0.00019349,2]
[378682174,1754958646702,-460.0,0.00019349,2]
[378682175,1754958646712,-460.0,0.00019349,2]
[378682176,1754958646721,-2266.72,0.00019349,2]
[378682177,1754958646730,-554.28,0.00019349,2]
[378682178,1754958646740,-460.0,0.00019349,2]
[378682179,1754958646750,-460.0,0.00019349,2]
[378682180,1754958646759,-460.0,0.00019349,2]
[378682181,1754958646769,-460.0,0.00019349,2]
[378682182,1754958646778,-1298.74,0.00019349,2]
[378682183,1754958646787,-467.29904304,0.00019349,2]
[378682184,1754958646800,-569.87475365,0.00019349,2]
[378682185,1754958646810,-460.0,0.00019349,2]
[378682186,1754958646820,-460.0,0.00019349,2]
[378682187,1754958646829,-460.0,0.00019349,2]
[378682188,1754958646839,-460.0,0.00019349,2]
[378682189,1754958646848,-460.0,0.00019349,2]
[378682190,1754958646858,-460.0,0.00019349,2]
[378682191,1754958646870,-460.0,0.00019349,2]
[378682192,1754958646880,-460.0,0.00019349,2]
[378682193,1754958646889,-460.0,0.00019349,2]
[378682194,1754958646898,-460.0,0.00019349,2]
[378682195,1754958646907,-460.0,0.00019349,2]
[378682196,1754958646917,-460.0,0.00019349,2]
[378682197,1754958646926,-460.0,0.00019349,2]
[378682198,1754958646936,-460.0,0.00019349,2]
[378682199,1754958646945,-569.52717049,0.00019349,2]
[378682200,1754958646954,-460.0,0.00019349,2]
[378682201,1754958646963,-1193.42,0.00019349,2]
[378682202,1754958646973,-477.04698681,0.00019349,2]
[378682203,1754958646983,-460.0,0.00019349,2]
[378682204,1754958646992,-460.0,0.00019349,2]
[378682205,1754958647001,-460.0,0.00019349,2]
[378682206,1754958647011,-3925.4,0.00019349,2]
[378682207,1754958647020,-460.0,0.00019349,2]
[378682208,1754958647034,-460.0,0.00019349,2]
[378682209,1754958647048,-460.0,0.00019349,2]
[378682210,1754958647057,-460.0,0.00019349,2]
[378682211,1754958647067,-460.0,0.00019349,2]
[378682212,1754958647076,-460.0,0.00019349,2]
[378682213,1754958647086,-460.0,0.00019349,2]
[378682214,1754958647096,-463.54142439,0.00019349,2]
[378682215,1754958647105,-456.59073452,0.00019349,2]
[378682216,1754958647114,-460.0,0.00019349,2]
[378682217,1754958647125,-885.4,0.00019349,2]
[378682218,1754958647135,-460.0,0.00019349,2]
[378682219,1754958647144,-460.0,0.00019349,2]
[378682220,1754958647154,-460.0,0.00019349,2]
[378682221,1754958647163,-460.0,0.00019349,2]
[378682222,1754958647172,-463.61835215,0.00019349,2]
[378682223,1754958647181,-460.0,0.00019349,2]
[378682224,1754958647191,-460.0,0.00019349,2]
[378682225,1754958647200,-460.0,0.00019349,2]
[378682226,1754958647209,-460.0,0.00019349,2]
[378682227,1754958647219,-460.0,0.00019349,2]
[378682228,1754958647227,-406.07562561,0.00019349,2]
[378682229,1754958647239,-479.30372772,0.00019349,2]
[378682230,1754958647248,-302.78807257,0.00019358,2]
[378682231,1754958647258,-500.0,0.00019373,2]
[378682232,1754958647267,-500.0,0.00019373,2]
[378682233,1754958647277,-500.0,0.00019373,2]
[378682234,1754958647286,-191.22993159,0.00019386,2]
[378682235,1754958647296,-322.2,0.00019432,2]
[378682236,1754958647305,-460.0,0.0001945,2]
[378682237,1754958647315,-580.22694274,0.0001945,2]
[378682238,1754958647325,-579.5,0.0001945,2]
[378682239,1754958647335,-460.0,0.0001945,2]
[378682240,1754958647344,-579.62,0.0001945,2]
[378682241,1754958647354,-1073.91,0.0001945,2]
[378682242,1754958647364,-460.0,0.0001945,2]
[378682243,1754958647373,-460.0,0.0001945,2]
[378682244,1754958647382,-460.0,0.0001945,2]
[378682245,1754958647391,-298.73074238,0.0001945,2]
[378682246,1754958647402,-460.0,0.0001945,2]
[378682247,1754958647413,-460.0,0.0001945,2]
[378682248,1754958647423,-460.0,0.0001945,2]
[378682249,1754958647433,-1605.17,0.0001945,2]
[378682250,1754958647442,-460.0,0.0001945,2]
[378682251,1754958647452,-1216.18,0.0001945,2]
[378682252,1754958647462,-1689.44,0.0001945,2]
[378682253,1754958647472,-791.13,0.0001945,2]
[378682254,1754958647481,-460.0,0.0001945,2]
[378682255,1754958647491,-460.0,0.0001945,2]
[378682256,1754958647501,-1028.6,0.0001945,2]
[378682257,1754958647510,-460.0,0.0001945,2]
[378682258,1754958647520,-460.0,0.0001945,2]
[378682259,1754958647530,-895.11,0.0001945,2]
[378682260,1754958647540,-460.0,0.0001945,2]
[378682261,1754958647550,-1705.96,0.0001945,2]
[378682262,1754958647559,-562.29578521,0.0001945,2]
[378682263,1754958647568,-460.0,0.0001945,2]
[378682264,1754958647578,-724.75,0.0001945,2]
[378682265,1754958647587,-460.0,0.0001945,2]
[378682266,1754958647597,-460.0,0.0001945,2]
[378682267,1754958647606,-1088.83,0.0001945,2]
[378682268,1754958647616,-460.0,0.0001945,2]
[378682269,1754958647625,-460.0,0.0001945,2]
[378682270,1754958647635,-462.67,0.0001945,2]
[378682271,1754958647645,-460.0,0.0001945,2]
[378682272,1754958647654,-460.0,0.0001945,2]
[378682273,1754958647665,-770.93,0.0001945,2]
[378682274,1754958647674,-646.65,0.0001945,2]
[378682275,1754958647684,-460.0,0.0001945,2]
[378682276,1754958647694,-460.0,0.0001945,2]
[378682277,1754958647704,-460.0,0.0001945,2]
[378682278,1754958647714,-460.0,0.0001945,2]
[378682279,1754958647724,-460.0,0.0001945,2]
[378682280,1754958647734,-460.0,0.0001945,2]
[378682281,1754958647744,-587.53,0.0001945,2]
[378682282,1754958647754,-911.52,0.0001945,2]
[378682283,1754958647764,-1020.95,0.0001945,2]
[378682284,1754958647774,-697.96,0.0001945,2]
[378682285,1754958647784,-460.0,0.0001945,2]
[378682286,1754958647794,-460.0,0.0001945,2]
[378682287,1754958647804,-460.0,0.0001945,2]
[378682288,1754958647813,-460.0,0.0001945,2]
[378682289,1754958647824,-151.0,0.0001945,2]
[378682290,1754958647835,-3424.47,0.0001945,2]
[378682291,1754958647844,-626.38,0.0001945,2]
[378682292,1754958647853,-151.0,0.0001945,2]
[378682293,1754958647863,-460.0,0.0001945,2]
[378682294,1754958647874,-460.0,0.0001945,2]
[378682295,1754958647884,-460.0,0.0001945,2]
[378682296,1754958647893,-460.0,0.0001945,2]
[378682297,1754958647903,-701.13,0.0001945,2]
[378682298,1754958647913,-460.0,0.0001945,2]
[378682299,1754958647923,-460.0,0.0001945,2]
[378682300,1754958647932,-1557.11,0.0001945,2]
[378682301,1754958647942,-460.0,0.0001945,2]
[378682302,1754958647952,-482.78,0.0001945,2]
[378682303,1754958647962,-908.04,0.0001945,2]
[378682304,1754958647971,-460.0,0.0001945,2]
[378682305,1754958647982,-460.0,0.0001945,2]
[378682306,1754958647991,-460.0,0.0001945,2]
[378682307,1754958648001,-460.0,0.0001945,2]
[378682308,1754958648010,-460.0,0.0001945,2]
[378682309,1754958648020,-460.0,0.0001945,2]
[378682310,1754958648029,-460.0,0.0001945,2]
[378682311,1754958648038,-460.0,0.0001945,2]
[378682312,1754958648048,-460.0,0.0001945,2]
[378682313,1754958648057,-460.0,0.0001945,2]
[378682314,1754958648067,-1892.47,0.0001945,2]
[378682315,1754958648077,-645.56,0.0001945,2]
[378682316,1754958648086,-460.0,0.0001945,2]
[378682317,1754958648096,-460.0,0.0001945,2]
[378682318,1754958648106,-460.0,0.0001945,2]
[378682319,1754958648116,-464.18,0.0001945,2]
[378682320,1754958648126,-516.22,0.0001945,2]
[378682321,1754958648135,-534.78,0.0001945,2]
[378682322,1754958648145,-460.0,0.0001945,2]
[378682323,1754958648155,-151.0,0.0001945,2]
[378682324,1754958648165,-460.0,0.0001945,2]
[378682325,1754958648175,-606.33,0.0001945,2]
[378682326,1754958648185,-460.0,0.00019451,2]
[378682327,1754958648195,-460.0,0.00019451,2]
[378682328,1754958648205,-460.0,0.00019451,2]
[378682329,1754958648215,-460.0,0.00019451,2]
[378682330,1754958648225,-460.0,0.00019451,2]
[378682331,1754958648235,-460.0,0.00019451,2]
[378682332,1754958648245,-460.0,0.00019451,2]
[378682333,1754958648255,-460.0,0.00019451,2]
[378682334,1754958648265,-11710.76,0.00019451,2]
[378682335,1754958648275,-2913.42,0.00019451,2]
[378682336,1754958648284,-460.0,0.00019451,2]
[378682337,1754958648294,-460.0,0.00019451,2]
[378682338,1754958648304,-4075.12,0.00019451,2]
[378682339,1754958648313,-460.0,0.00019451,2]
[378682340,1754958648323,-460.0,0.00019451,2]
[378682341,1754958648332,-460.0,0.00019451,2]
[378682342,1754958648342,-168.60759206,0.00019451,2]
[378682343,1754958648599,-291.39240794,0.00019451,2]
[378682344,1754958648609,-151.0,0.00019451,2]
[378682345,1754958648619,-460.0,0.00019451,2]
[378682346,1754958648629,-151.0,0.00019451,2]
[378682347,1754958648638,-624.53,0.00019451,2]
[378682348,1754958648649,-2733.99,0.00019451,2]
[378682349,1754958648660,-388.08759206,0.00019451,2]
[378682350,1754958648673,-1694.07240794,0.00019451,2]
[378682351,1754958648682,-151.0,0.00019451,2]
[378682352,1754958648692,-151.0,0.00019451,2]
[378682353,1754958648701,-1598.56,0.00019451,2]
[378682354,1754958648711,-151.0,0.00019451,2]
[378682355,1754958648721,-484.846207,0.00019451,2]
[378682356,1754958648732,-484.846207,0.00019451,2]
[378682357,1754958648741,-151.0,0.00019451,2]
[378682358,1754958648750,-616.92,0.00019451,2]
[378682359,1754958648760,-151.0,0.00019451,2]
[378682360,1754958648769,-151.0,0.00019451,2]
[378682361,1754958648779,-151.0,0.00019451,2]
[378682362,1754958648790,-3366.89783311,0.00019451,2]
[378682363,1754958648803,-564.61216689,0.00019451,2]
[378682364,1754958648812,-227.828866,0.00019451,2]
[378682365,1754958648822,-152.300402,0.00019451,2]
[378682366,1754958648833,-151.0,0.00019451,2]
[378682367,1754958648843,-460.0,0.00019451,2]
[378682368,1754958648852,-151.0,0.00019451,2]
[378682369,1754958648862,-151.0,0.00019451,2]
[378682370,1754958648874,-3664.76,0.00019451,2]
[378682371,1754958648884,-78.96664911,0.00019451,2]
[378682372,1754958648958,-381.03335089,0.00019451,2]
[378682373,1754958648968,-460.0,0.00019451,2]
[378682374,1754958648977,-200.0,0.00019453,15]
[378682375,1754958648987,-200.0,0.00019453,15]
[378682376,1754958648997,-200.0,0.00019453,15]
[378682377,1754958649007,-200.0,0.00019453,15]
[378682378,1754958649017,-1315.0,0.00019465,2]
[378682379,1754958649026,-500.86414136,0.00019473,2]
[378682380,1754958649036,-500.0,0.00019473,2]
[378682381,1754958649046,-158.46166641,0.00019473,2]
[378682382,1754958649056,-338.07546911,0.00019473,2]
[378682383,1754958649066,-185.25659566,0.00019473,2]
[378682384,1754958649076,-157.04278845,0.00019473,2]
[378682385,1754958649086,-160.06318468,0.00019473,2]
[378682386,1754958649096,-258.42704119,0.00019473,2]
[378682387,1754958649106,-188.47570756,0.00019473,2]
[378682388,1754958649115,-500.0,0.00019473,2]
[378682389,1754958649125,-500.0,0.00019473,2]
[378682390,1754958649135,-160.46192181,0.00019473,2]
[378682391,1754958649144,-500.0,0.00019473,2]
[378682392,1754958649154,-158.46444877,0.00019473,2]
[378682393,1754958649166,-165.05050708,0.00019473,2]
[378682394,1754958649176,-500.0,0.00019473,2]
[378682395,1754958649186,-160.04917295,0.00019473,2]
[378682396,1754958649196,-340.52011149,0.00019473,2]
[378682397,1754958649206,-159.45114521,0.00019473,2]
[378682398,1754958649216,-500.0,0.00019473,2]
[378682399,1754958649226,-500.0,0.00019473,2]
[378682400,1754958649235,-158.04855828,0.00019473,2]
[378682401,1754958649245,-158.44868159,0.00019473,2]
[378682402,1754958649255,-160.06669641,0.00019473,2]
[378682403,1754958649264,-500.0,0.00019473,2]
[378682404,1754958649274,-158.04855828,0.00019473,2]
[378682405,1754958649284,-500.0,0.00019473,2]
[378682406,1754958649294,-160.0,0.00019494,2]
[378682407,1754958649304,-231.9940742,0.00019494,2]
[378682408,1754958649313,-843.18994796,0.00019494,2]
[378682409,1754958649323,-216.68257536,0.00019494,2]
[378682410,1754958649333,-461.69158338,0.00019494,2]
[378682411,1754958649342,-160.0,0.00019494,2]
[378682412,1754958649352,-160.0,0.00019494,2]
[378682413,1754958649362,-215.4905783,0.00019494,2]
[378682414,1754958649371,-417.15472785,0.00019494,2]
[378682415,1754958649381,-160.0,0.00019494,2]
[378682416,1754958649391,-160.0,0.00019494,2]
[378682417,1754958649401,-160.0,0.00019494,2]
[378682418,1754958649411,-160.0,0.00019494,2]
[378682419,1754958649421,-527.9539256,0.00019494,2]
[378682420,1754958649430,-12671.21867243,0.00019494,2]
[378682421,1754958649440,-160.0,0.00019494,2]
[378682422,1754958649450,-160.0,0.00019494,2]
[378682423,1754958649460,-6240.228032,0.00019496,2]
[378682424,1754958649470,-151.0,0.00019496,2]
[378682425,1754958649480,-151.0,0.00019496,2]
[378682426,1754958649490,-204.590231,0.00019496,2]
[378682427,1754958649500,-1315.0,0.00019523,2]
[378682428,1754958649509,-434.8076684,0.00019548,2]
[378682429,1754958649519,-322.2,0.00019573,2]
[378682430,1754958649529,-460.0,0.0001962,2]
[378682431,1754958649539,-460.0,0.0001962,2]
[378682432,1754958649722,-460.0,0.00019621,2]
[378682433,1754958649732,-460.0,0.00019621,2]
[378682434,1754958649741,-460.0,0.00019621,2]
[378682435,1754958649750,-5060.33,0.00019621,2]
[378682436,1754958649760,-460.0,0.00019621,2]
[378682437,1754958649769,-902.16,0.00019621,2]
[378682438,1754958649778,-460.0,0.00019621,2]
[378682439,1754958649788,-460.0,0.00019621,2]
[378682440,1754958649802,-4463.63,0.00019621,2]
[378682441,1754958649811,-666.74,0.00019621,2]
[378682442,1754958649820,-1427.76,0.00019621,2]
[378682443,1754958649830,-806.38,0.00019621,2]
[378682444,1754958649840,-2579.66,0.00019621,2]
[378682445,1754958649849,-460.0,0.00019621,2]
[378682446,1754958649858,-460.0,0.00019621,2]
[378682447,1754958649867,-1359.88,0.00019621,2]
[378682448,1754958649880,-460.0,0.00019621,2]
[378682449,1754958649890,-3900.76,0.00019621,2]
[378682450,1754958649899,-809.92,0.00019621,2]
[378682451,1754958649909,-460.0,0.00019621,2]
[378682452,1754958649918,-766.99,0.00019621,2]
[378682453,1754958649927,-460.0,0.00019621,2]
[378682454,1754958649937,-460.0,0.00019621,2]
[378682455,1754958649946,-460.0,0.00019621,2]
[378682456,1754958649955,-465.74591987,0.00019621,2]
[378682457,1754958649964,-433.04627431,0.00019622,2]
[378682458,1754958649974,-784.57,0.00019622,2]
[378682459,1754958649983,-460.0,0.00019622,2]
[378682460,1754958649992,-460.0,0.00019622,2]
[378682461,1754958650001,-462.68586432,0.00019622,2]
[378682462,1754958650011,-460.0,0.00019622,2]
[378682463,1754958650020,-1221.81,0.00019622,2]
[378682464,1754958650030,-861.66,0.00019622,2]
[378682465,1754958650039,-460.0,0.00019622,2]
[378682466,1754958650048,-460.0,0.00019622,2]
[378682467,1754958650057,-460.0,0.00019622,2]
[378682468,1754958650066,-460.0,0.00019622,2]
[378682469,1754958650076,-460.0,0.00019622,2]
[378682470,1754958650085,-460.0,0.00019622,2]
[378682471,1754958650095,-494.87,0.00019622,2]
[378682472,1754958650105,-463.51,0.00019622,2]
[378682473,1754958650114,-460.0,0.00019622,2]
[378682474,1754958650123,-460.0,0.00019622,2]
[378682475,1754958650132,-460.0,0.00019622,2]
[378682476,1754958650142,-692.47293887,0.00019622,2]
[378682477,1754958650155,-284.17706113,0.00019622,2]
[378682478,1754958650166,-608.91,0.00019622,2]
[378682479,1754958650175,-842.07,0.00019622,2]
[378682480,1754958650184,-460.0,0.00019622,2]
[378682481,1754958650194,-460.0,0.00019622,2]
[378682482,1754958650203,-1459.43,0.00019622,2]
[378682483,1754958650213,-460.0,0.00019622,2]
[378682484,1754958650222,-632.07,0.00019622,2]
[378682485,1754958650232,-1203.9,0.00019622,2]
[378682486,1754958650242,-460.0,0.00019622,2]
[378682487,1754958650251,-460.0,0.00019622,2]
[378682488,1754958650260,-460.0,0.00019622,2]
[378682489,1754958650270,-460.0,0.00019622,2]
[378682490,1754958650279,-460.0,0.00019622,2]
[378682491,1754958650288,-622.11,0.00019622,2]
[378682492,1754958650298,-460.0,0.00019622,2]
[378682493,1754958650307,-460.0,0.00019622,2]
[378682494,1754958650316,-195.98721945,0.00019622,2]
[378682495,1754958650326,-765.88,0.00019622,2]
[378682496,1754958650335,-460.0,0.00019622,2]
[378682497,1754958650345,-487.63,0.00019622,2]
[378682498,1754958650354,-1223.37,0.00019622,2]
[378682499,1754958650363,-460.0,0.00019622,2]
[378682500,1754958650373,-460.0,0.00019622,2]
[378682501,1754958650383,-6326.87,0.00019622,2]
[378682502,1754958650392,-460.0,0.00019622,2]
[378682503,1754958650402,-460.0,0.00019622,2]
[378682504,1754958650412,-500.41,0.00019622,2]
[378682505,1754958650422,-509.65,0.00019622,2]
[378682506,1754958650431,-460.0,0.00019622,2]
[378682507,1754958650441,-460.0,0.00019622,2]
[378682508,1754958650450,-1655.31,0.00019622,2]
[378682509,1754958650460,-1264.35,0.00019622,2]
[378682510,1754958650469,-508.94473862,0.00019622,2]
[378682511,1754958650479,-682.46,0.00019622,2]
[378682512,1754958650489,-1137.09,0.00019622,2]
[378682513,1754958650499,-460.0,0.00019622,2]
[378682514,1754958650508,-460.0,0.00019622,2]
[378682515,1754958650517,-2297.14,0.00019622,2]
[378682516,1754958650527,-460.0,0.00019622,2]
[378682517,1754958650536,-460.0,0.00019622,2]
[378682518,1754958650545,-561.06,0.00019622,2]
[378682519,1754958650554,-460.0,0.00019622,2]
[378682520,1754958650563,-460.0,0.00019622,2]
[378682521,1754958650573,-460.0,0.00019622,2]
[378682522,1754958650582,-460.0,0.00019622,2]
[378682523,1754958650591,-1009.73448367,0.00019622,2]
[378682524,1754958650616,-460.0,0.0001962,2]
[378682525,1754958650625,-975.72551633,0.00019622,2]
[378682526,1754958650635,-460.0,0.00019622,2]
[378682527,1754958650644,-460.0,0.00019622,2]
[378682528,1754958650654,-460.0,0.00019622,2]
[378682529,1754958650663,-460.0,0.00019622,2]
[378682530,1754958650672,-362.59685203,0.00019622,2]
[378682531,1754958650685,-194.37314797,0.00019622,2]
[378682532,1754958650694,-460.0,0.00019622,2]
[378682533,1754958650703,-835.67,0.00019622,2]
[378682534,1754958650713,-1145.06,0.00019622,2]
[378682535,1754958650722,-1271.75,0.00019622,2]
[378682536,1754958650733,-425.58759968,0.00019622,2]
[378682537,1754958650742,-460.0,0.00019622,2]
[378682538,1754958650751,-1194.86,0.00019622,2]
[378682539,1754958650761,-1636.68,0.00019622,2]
[378682540,1754958650770,-4627.12020539,0.00019622,2]
[378682541,1754958651134,-460.0,0.00019072,2]
[378682542,1754958651143,-46.83698127,0.00019073,2]
[378682543,1754958651690,-339.72560719,0.00019072,2]
[378682544,1754958652271,-120.27439281,0.00019072,2]
[378682545,1754958652285,-283.63717399,0.00019072,2]
[378682546,1754958652299,-176.36282601,0.00019072,2]
[378682547,1754958652310,-462.81218085,0.00019072,2]
[378682548,1754958652322,-47.47342516,0.00019073,2]
[378682549,1754958652336,-365.68959357,0.00019073,2]
[378682550,1754958652347,-460.0,0.00019073,2]
[378682551,1754958652358,-460.0,0.00019073,2]
[378682552,1754958652369,-3387.85,0.00019074,2]
[378682553,1754958652381,-579.74,0.00019074,2]
[378682554,1754958652393,-461.00267252,0.00019074,2]
[378682555,1754958652404,-460.0,0.00019074,2]
[378682556,1754958652416,-460.0,0.00019074,2]
[378682557,1754958652428,-474.7867492,0.00019074,2]
[378682558,1754958652439,-392.74432696,0.00019075,2]
[378682559,1754958652451,-500.0,0.00019075,2]
[378682560,1754958652462,-3387.85,0.00019348,2]
[378682561,1754958652474,-460.0,0.00019348,2]
[378682562,1754958652485,-294.26299,0.00019451,2]
[378682563,1754958652496,-213.88979461,0.00019622,2]
[378682564,1754958652507,-460.0,0.00019622,2]
[378682565,1754958652518,-460.0,0.00019622,2]
[378682566,1754958652529,-460.0,0.00019622,2]
[378682567,1754958652540,-469.21307286,0.00019622,2]
[378682568,1754958652551,-460.0,0.00019622,2]
[378682569,1754958652562,-327.29115212,0.00019622,2]
[378682570,1754958652573,-460.0,0.00019622,2]
[378682571,1754958652585,-1017.52,0.00019622,2]
[378682572,1754958652596,-460.0,0.00019622,2]
[378682573,1754958652607,-460.0,0.00019622,2]
[378682574,1754958652617,-460.0,0.00019622,2]
[378682575,1754958652629,-297.47421785,0.00019622,2]
[378682576,1754958652641,-533.26,0.00019622,2]
[378682577,1754958652652,-460.0,0.00019622,2]
[378682578,1754958652664,-152.654523,0.00019622,2]
[378682579,1754958652675,-460.0,0.00019622,2]
[378682580,1754958652687,-984.28,0.00019622,2]
[378682581,1754958652698,-1334.35,0.00019622,2]
[378682582,1754958652709,-153.60118864,0.00019622,2]
[378682583,1754958652721,-3022.21,0.00019622,2]
[378682584,1754958652735,-954.96,0.00019622,2]
[378682585,1754958652749,-3387.85,0.00019622,2]
[378682586,1754958652761,-182.82716621,0.00019622,2]
[378682587,1754958652773,-460.0,0.00019623,2]
[378682588,1754958652782,-460.0,0.00019623,2]
[378682589,1754958652794,-587.58346906,0.00019623,2]
[378682590,1754958652806,-460.0,0.00019623,2]
[378682591,1754958652815,-460.0,0.00019623,2]
[378682592,1754958652824,-460.0,0.00019623,2]
[378682593,1754958652833,-460.0,0.00019623,2]
[378682594,1754958652843,-733.37,0.00019623,2]
[378682595,1754958652852,-460.0,0.00019623,2]
[378682596,1754958652861,-460.0,0.00019623,2]
[378682597,1754958652870,-460.0,0.00019623,2]
[378682598,1754958652880,-460.0,0.00019623,2]
[378682599,1754958652889,-460.0,0.00019623,2]
[378682600,1754958652898,-460.0,0.00019623,2]
[378682601,1754958652907,-460.0,0.00019623,2]
[378682602,1754958652917,-460.0,0.00019623,2]
[378682603,1754958652927,-460.0,0.00019623,2]
[378682604,1754958652937,-460.0,0.00019623,2]
[378682605,1754958652946,-460.0,0.00019623,2]
[378682606,1754958652957,-460.0,0.00019623,2]
[378682607,1754958652967,-460.0,0.00019623,2]
[378682608,1754958652977,-460.0,0.00019623,2]